fUSD/lending_fUSD_20250107
["ID","MTS","AMOUNT","RATE_DAILY","PERIOD"]
[347970017,1736255439327,-500.0,9.769e-05,2]
[347970019,1736255439336,-500.0,9.769e-05,2]
[347970021,1736255439345,-500.0,9.769e-05,2]
[347970023,1736255439354,-782.72,9.769e-05,2]
[347970025,1736255439363,-578.84712404,9.769e-05,2]
[347970027,1736255439374,-1185.11287596,9.769e-05,2]
[347970029,1736255439383,-500.0,9.769e-05,2]
[347970031,1736255439392,-332.30252404,9.769e-05,2]
[347970033,1736255439403,-1740.23747596,9.769e-05,2]
[347970035,1736255439412,-540.45,9.769e-05,2]
[347970037,1736255439422,-500.0,9.769e-05,2]
[347970039,1736255439431,-500.0,9.769e-05,2]
[347970041,1736255439440,-500.0,9.769e-05,2]
[347970043,1736255439449,-500.0,9.769e-05,2]
[347970045,1736255439460,-4060.3,9.769e-05,2]
[347970047,1736255439469,-1931.89,9.769e-05,2]
[347970049,1736255439478,-500.0,9.769e-05,2]
[347970052,1736255439488,-500.0,9.769e-05,2]
[347970053,1736255439497,-600.95034799,9.769e-05,2]
[347970056,1736255439509,-1362.96965201,9.769e-05,2]
[347970058,1736255439519,-500.0,9.769e-05,2]
[347970060,1736255439527,-500.0,9.769e-05,2]
[347970062,1736255439536,-500.0,9.769e-05,2]
[347970064,1736255439545,-500.0,9.769e-05,2]
[347970066,1736255439554,-1004.63,9.769e-05,2]
[347970068,1736255439563,-500.0,9.769e-05,2]
[347970070,1736255439572,-500.0,9.769e-05,2]
[347970072,1736255439581,-500.0,9.769e-05,2]
[347970074,1736255439590,-500.0,9.769e-05,2]
[347970076,1736255439599,-3046.67,9.769e-05,2]
[347970077,1736255439608,-500.0,9.769e-05,2]
[347970079,1736255439617,-604.16,9.769e-05,2]
[347970081,1736255439626,-1688.97,9.769e-05,2]
[347970083,1736255439635,-625.0,9.769e-05,2]
[347970085,1736255439644,-957.36,9.769e-05,2]
[347970087,1736255439653,-740.26,9.769e-05,2]
[347970089,1736255439662,-500.0,9.769e-05,2]
[347970091,1736255439671,-500.0,9.769e-05,2]
[347970093,1736255439680,-500.0,9.769e-05,2]
[347970095,1736255439689,-500.0,9.769e-05,2]
[347970097,1736255439698,-500.0,9.77e-05,2]
[347970099,1736255439708,-500.0,9.77e-05,2]
[347970101,1736255439717,-651.14,9.77e-05,2]
[347970103,1736255439726,-583.33,9.77e-05,2]
[347970105,1736255439736,-500.0,9.77e-05,2]
[347970107,1736255439745,-500.0,9.77e-05,2]
[347970109,1736255439756,-500.0,9.77e-05,2]
[347970111,1736255439765,-500.0,9.77e-05,2]
[347970113,1736255439777,-500.0,9.77e-05,2]
[347970115,1736255439786,-500.0,9.77e-05,2]
[347970117,1736255439796,-458.92312909,9.77e-05,2]
[347970119,1736255439805,-508.67692627,9.77e-05,2]
[347970121,1736255439814,-500.0,9.77e-05,2]
[347970123,1736255439823,-500.0,9.77e-05,2]
[347970125,1736255439832,-500.0,9.77e-05,2]
[347970126,1736255439842,-500.0,9.77e-05,2]
[347970129,1736255439851,-500.0,9.77e-05,2]
[347970130,1736255439861,-500.0,9.77e-05,2]
[347970132,1736255439870,-500.0,9.77e-05,2]
[347970134,1736255439879,-500.0,9.77e-05,2]
[347970136,1736255439889,-500.0,9.77e-05,2]
[347970139,1736255439897,-500.0,9.77e-05,2]
[347970142,1736255439907,-500.0,9.77e-05,2]
[347970145,1736255439916,-312.02038339,9.77e-05,2]
[347970147,1736255439925,-500.0,9.77e-05,2]
[347970149,1736255439935,-500.0,9.77e-05,2]
[347970151,1736255439944,-502.16479961,9.77e-05,2]
[347970153,1736255439953,-573.87,9.77e-05,2]
[347970155,1736255439965,-500.0,9.77e-05,2]
[347970157,1736255439974,-500.0,9.77e-05,2]
[347970160,1736255439984,-780.99,9.77e-05,2]
[347970162,1736255439993,-500.0,9.77e-05,2]
[347970164,1736255440002,-500.0,9.77e-05,2]
[347970166,1736255440011,-500.0,9.77e-05,2]
[347970167,1736255440020,-558.18,9.77e-05,2]
[347970169,1736255440030,-1961.52,9.77e-05,2]
[347970171,1736255440039,-500.0,9.77e-05,2]
[347970173,1736255440048,-526.62,9.77e-05,2]
[347970175,1736255440057,-500.0,9.77e-05,2]
[347970177,1736255440066,-500.0,9.77e-05,2]
[347970179,1736255440075,-500.0,9.77e-05,2]
[347970181,1736255440085,-500.0,9.77e-05,2]
[347970183,1736255440094,-500.0,9.77e-05,2]
[347970185,1736255440103,-556.17,9.77e-05,2]
[347970187,1736255440113,-500.0,9.77e-05,2]
[347970188,1736255440122,-1456.96,9.77e-05,2]
[347970189,1736255440132,-507.76,9.77e-05,2]
[347970190,1736255440141,-500.0,9.77e-05,2]
[347970191,1736255440150,-633.39,9.77e-05,2]
[347970192,1736255440160,-500.0,9.77e-05,2]
[347970193,1736255440169,-500.0,9.77e-05,2]
[347970194,1736255440178,-500.0,9.77e-05,2]
[347970195,1736255440188,-500.0,9.77e-05,2]
[347970196,1736255440197,-500.0,9.77e-05,2]
[347970198,1736255440208,-500.0,9.77e-05,2]
[347970200,1736255440221,-500.0,9.77e-05,2]
[347970202,1736255440231,-500.0,9.77e-05,2]
[347970204,1736255440241,-500.0,9.77e-05,2]
[347970206,1736255440250,-500.0,9.77e-05,2]
[347970208,1736255440260,-459.85028556,9.77e-05,2]
[347970210,1736255440271,-631.79,9.77e-05,2]
[347970212,1736255440280,-500.0,9.77e-05,2]
[347970214,1736255440290,-501.79615603,9.77e-05,2]
[347970216,1736255440299,-335.98725137,9.77e-05,2]
[347970218,1736255440309,-500.0,9.77e-05,2]
[347970219,1736255440318,-500.0,9.77e-05,2]
[347970221,1736255440327,-1324.12,9.77e-05,2]
[347970223,1736255440337,-571.43,9.77e-05,2]
[347970226,1736255440347,-500.0,9.77e-05,2]
[347970227,1736255440357,-502.43948141,9.77e-05,2]
[347970230,1736255440367,-387.02157371,9.77e-05,2]
[347970232,1736255440377,-500.0,9.77e-05,2]
[347970234,1736255440387,-500.0,9.77e-05,2]
[347970236,1736255440397,-500.0,9.77e-05,2]
[347970238,1736255440406,-500.0,9.77e-05,2]
[347970240,1736255440416,-500.0,9.77e-05,2]
[347970241,1736255440425,-500.0,9.77e-05,2]
[347970243,1736255440435,-500.0,9.77e-05,2]
[347970246,1736255440445,-212.94955963,9.77e-05,2]
[347970309,1736255441803,-500.0,9.769e-05,2]
[347970310,1736255441812,-287.05044037,9.77e-05,2]
[347970311,1736255441822,-500.0,9.77e-05,2]
[347970312,1736255441831,-631.43313724,9.77e-05,2]
[347970313,1736255441851,-500.0,9.769e-05,2]
[347970314,1736255441861,-428.53686276,9.77e-05,2]
[347970316,1736255441871,-676.73,9.77e-05,2]
[347970318,1736255441880,-500.0,9.77e-05,2]
[347970320,1736255441890,-500.0,9.77e-05,2]
[347970322,1736255441899,-500.0,9.77e-05,2]
[347970324,1736255441908,-500.0,9.77e-05,2]
[347970326,1736255441917,-536.40920119,9.77e-05,2]
[347970327,1736255441926,-741.1,9.77e-05,2]
[347970330,1736255441935,-520.74067739,9.77e-05,2]
[347970332,1736255441946,-500.0,9.77e-05,2]
[347970334,1736255441955,-500.0,9.77e-05,2]
[347970336,1736255441967,-500.0,9.77e-05,2]
[347970338,1736255441976,-500.0,9.77e-05,2]
[347970340,1736255441986,-500.0,9.77e-05,2]
[347970342,1736255441995,-500.0,9.77e-05,2]
[347970344,1736255442004,-500.0,9.77e-05,2]
[347970346,1736255442013,-566.35,9.77e-05,2]
[347970348,1736255442023,-542.38,9.77e-05,2]
[347970350,1736255442032,-541.66,9.77e-05,2]
[347970352,1736255442041,-500.0,9.77e-05,2]
[347970354,1736255442050,-500.0,9.77e-05,2]
[347970356,1736255442059,-500.0,9.77e-05,2]
[347970358,1736255442068,-503.4723339,9.77e-05,2]
[347970360,1736255442078,-500.0,9.77e-05,2]
[347970362,1736255442087,-643.69,9.77e-05,2]
[347970364,1736255442097,-500.0,9.77e-05,2]
[347970366,1736255442106,-500.0,9.77e-05,2]
[347970368,1736255442115,-500.0,9.77e-05,2]
[347970370,1736255442124,-394.13093255,9.77e-05,2]
[347970372,1736255442133,-500.0,9.77e-05,2]
[347970374,1736255442143,-500.0,9.77e-05,2]
[347970376,1736255442152,-557.79,9.77e-05,2]
[347970378,1736255442161,-500.0,9.77e-05,2]
[347970380,1736255442170,-500.0,9.77e-05,2]
[347970382,1736255442180,-500.0,9.77e-05,2]
[347970384,1736255442189,-500.0,9.77e-05,2]
[347970386,1736255442198,-500.0,9.77e-05,2]
[347970387,1736255442210,-500.0,9.77e-05,2]
[347970390,1736255442220,-500.0,9.77e-05,2]
[347970391,1736255442229,-623.26,9.77e-05,2]
[347970393,1736255442238,-1001.93,9.77e-05,2]
[347970395,1736255442247,-500.0,9.77e-05,2]
[347970398,1736255442259,-500.0,9.77e-05,2]
[347970400,1736255442269,-491.14086502,9.77e-05,2]
[347970401,1736255442278,-564.03,9.77e-05,2]
[347970403,1736255442288,-465.09593921,9.77e-05,2]
[347970406,1736255442302,-324.22562728,9.77e-05,2]
[347970408,1736255442313,-1414.89843351,9.77e-05,2]
[347970410,1736255442321,-500.0,9.77e-05,2]
[347970412,1736255442331,-322.14769657,9.77e-05,2]
[347970414,1736255442344,-177.85230343,9.77e-05,2]
[347970416,1736255442354,-259.79384825,9.77e-05,2]
[347970418,1736255442366,-302.70615175,9.77e-05,2]
[347970420,1736255442374,-500.0,9.77e-05,2]
[347970422,1736255442383,-500.0,9.77e-05,2]
[347970424,1736255442392,-500.0,9.77e-05,2]
[347970426,1736255442401,-600.99,9.77e-05,2]
[347970428,1736255442411,-500.0,9.77e-05,2]
[347970430,1736255442420,-505.2,9.77e-05,2]
[347970432,1736255442429,-500.0,9.77e-05,2]
[347970434,1736255442438,-500.0,9.77e-05,2]
[347970436,1736255442447,-2261.68,9.77e-05,2]
[347970438,1736255442457,-500.0,9.77e-05,2]
[347970440,1736255442467,-500.0,9.77e-05,2]
[347970442,1736255442475,-500.0,9.77e-05,2]
[347970444,1736255442485,-2873.28,9.77e-05,2]
[347970446,1736255442494,-541.66,9.77e-05,2]
[347970448,1736255442503,-2066.67,9.77e-05,2]
[347970450,1736255442512,-500.0,9.77e-05,2]
[347970452,1736255442521,-1328.6,9.77e-05,2]
[347970454,1736255442530,-500.0,9.77e-05,2]
[347970456,1736255442540,-500.0,9.77e-05,2]
[347970459,1736255442554,-500.0,9.77e-05,2]
[347970461,1736255442563,-500.0,9.77e-05,2]
[347970463,1736255442573,-500.0,9.77e-05,2]
[347970465,1736255442582,-2914.35,9.77e-05,2]
[347970467,1736255442591,-500.0,9.77e-05,2]
[347970469,1736255442600,-500.0,9.77e-05,2]
[347970471,1736255442609,-500.0,9.77e-05,2]
[347970473,1736255442618,-500.0,9.77e-05,2]
[347970475,1736255442627,-500.0,9.77e-05,2]
[347970477,1736255442636,-500.0,9.77e-05,2]
[347970479,1736255442646,-500.0,9.77e-05,2]
[347970481,1736255442655,-533.13903372,9.77e-05,2]
[347970483,1736255442664,-500.0,9.77e-05,2]
[347970485,1736255442674,-500.0,9.77e-05,2]
[347970487,1736255442683,-965.4,9.77e-05,2]
[347970489,1736255442693,-500.0,9.77e-05,2]
[347970491,1736255442702,-500.0,9.77e-05,2]
[347970493,1736255442714,-500.0,9.77e-05,2]
[347970495,1736255442723,-805.98,9.77e-05,2]
[347970497,1736255442732,-1458.9,9.77e-05,2]
[347970499,1736255442742,-2113.63,9.77e-05,2]
[347970501,1736255442751,-500.0,9.77e-05,2]
[347970503,1736255442760,-500.0,9.77e-05,2]
[347970505,1736255442770,-578.59,9.77e-05,2]
[347970507,1736255442780,-500.0,9.77e-05,2]
[347970509,1736255442790,-500.0,9.77e-05,2]
[347970511,1736255442801,-500.0,9.77e-05,2]
[347970513,1736255442810,-500.0,9.77e-05,2]
[347970515,1736255442819,-500.0,9.77e-05,2]
[347970516,1736255442829,-500.0,9.77e-05,2]
[347970517,1736255442838,-586.01,9.77e-05,2]
[347970518,1736255442848,-500.0,9.77e-05,2]
[347970519,1736255442857,-804.83,9.77e-05,2]
[347970520,1736255442867,-500.0,9.77e-05,2]
[347970521,1736255442876,-500.0,9.77e-05,2]
[347970522,1736255442885,-500.0,9.77e-05,2]
[347970523,1736255442895,-1335.3,9.77e-05,2]
[347970524,1736255442904,-500.0,9.77e-05,2]
[347970525,1736255442914,-962.88,9.77e-05,2]
[347970526,1736255442924,-500.0,9.77e-05,2]
[347970528,1736255442933,-1195.6,9.77e-05,2]
[347970530,1736255442942,-500.0,9.77e-05,2]
[347970532,1736255442951,-500.0,9.77e-05,2]
[347970535,1736255442961,-2491.83137303,9.77e-05,2]
[347970539,1736255442974,-2766.96862697,9.77e-05,2]
[347970542,1736255442983,-500.0,9.77e-05,2]
[347970545,1736255442992,-500.0,9.77e-05,2]
[347970548,1736255443001,-500.0,9.77e-05,2]
[347970551,1736255443010,-816.64,9.77e-05,2]
[347970554,1736255443019,-562.5,9.77e-05,2]
[347970557,1736255443028,-500.0,9.77e-05,2]
[347970559,1736255443036,-500.0,9.77e-05,2]
[347970561,1736255443045,-500.0,9.77e-05,2]
[347970563,1736255443055,-797.01,9.77e-05,2]
[347970565,1736255443064,-500.0,9.77e-05,2]
[347970566,1736255443074,-1451.42877648,9.77e-05,2]
[347970570,1736255443086,-63.77122352,9.77e-05,2]
[347970573,1736255443095,-3005.47,9.77e-05,2]
[347970575,1736255443104,-308.55412697,9.77e-05,2]
[347970577,1736255443114,-500.0,9.77e-05,2]
[347970578,1736255443123,-500.0,9.77e-05,2]
[347970579,1736255443132,-1178.56,9.77e-05,2]
[347970580,1736255443141,-500.0,9.77e-05,2]
[347970581,1736255443150,-500.0,9.77e-05,2]
[347970582,1736255443161,-1155.83,9.77e-05,2]
[347970583,1736255443170,-500.0,9.77e-05,2]
[347970584,1736255443179,-500.0,9.77e-05,2]
[347970586,1736255443189,-602.43,9.77e-05,2]
[347970588,1736255443198,-500.0,9.77e-05,2]
[347970590,1736255443207,-726.15,9.77e-05,2]
[347970592,1736255443219,-781.27,9.77e-05,2]
[347970594,1736255443228,-500.0,9.77e-05,2]
[347970595,1736255443238,-573.51,9.77e-05,2]
[347970596,1736255443247,-500.0,9.77e-05,2]
[347970597,1736255443258,-500.0,9.77e-05,2]
[347970598,1736255443268,-500.0,9.77e-05,2]
[347970599,1736255443278,-5154.99,9.77e-05,2]
[347970600,1736255443288,-500.0,9.77e-05,2]
[347970601,1736255443297,-1826.71,9.77e-05,2]
[347970603,1736255443307,-685.06,9.77e-05,2]
[347970605,1736255443316,-500.0,9.77e-05,2]
[347970607,1736255443326,-882.78,9.77e-05,2]
[347970608,1736255443336,-500.0,9.77e-05,2]
[347970609,1736255443346,-500.0,9.77e-05,2]
[347970610,1736255443355,-500.0,9.77e-05,2]
[347970611,1736255443364,-500.0,9.77e-05,2]
[347970612,1736255443696,-500.0,9.77e-05,2]
[347970613,1736255443707,-561.63,9.77e-05,2]
[347970614,1736255443719,-969.23,9.77e-05,2]
[347970615,1736255443728,-500.0,9.77e-05,2]
[347970616,1736255443737,-500.0,9.77e-05,2]
[347970617,1736255443747,-500.0,9.77e-05,2]
[347970618,1736255443757,-5300.21,9.77e-05,2]
[347970619,1736255443766,-737.77,9.77e-05,2]
[347970620,1736255443779,-500.0,9.77e-05,2]
[347970621,1736255443790,-500.0,9.77e-05,2]
[347970622,1736255443800,-500.0,9.77e-05,2]
[347970623,1736255443810,-500.0,9.77e-05,2]
[347970624,1736255443819,-619.2,9.77e-05,2]
[347970625,1736255443828,-500.0,9.77e-05,2]
[347970626,1736255443838,-1278.46,9.77e-05,2]
[347970627,1736255443847,-500.0,9.77e-05,2]
[347970628,1736255443856,-621.52,9.77e-05,2]
[347970629,1736255443866,-500.0,9.77e-05,2]
[347970630,1736255443875,-566.77,9.77e-05,2]
[347970631,1736255443884,-708.23,9.77e-05,2]
[347970632,1736255443893,-500.0,9.77e-05,2]
[347970633,1736255443902,-500.0,9.77e-05,2]
[347970634,1736255443912,-500.0,9.77e-05,2]
[347970635,1736255443921,-500.0,9.77e-05,2]
[347970636,1736255443931,-1000.59,9.77e-05,2]
[347970637,1736255443940,-500.0,9.77e-05,2]
[347970638,1736255443950,-500.0,9.77e-05,2]
[347970639,1736255443961,-500.0,9.77e-05,2]
[347970640,1736255443971,-971.77,9.77e-05,2]
[347970641,1736255443980,-500.0,9.77e-05,2]
[347970642,1736255443989,-500.0,9.77e-05,2]
[347970643,1736255443999,-719.3,9.77e-05,2]
[347970644,1736255444008,-610.97,9.77e-05,2]
[347970645,1736255444018,-500.0,9.77e-05,2]
[347970646,1736255444029,-500.0,9.77e-05,2]
[347970647,1736255444039,-500.0,9.77e-05,2]
[347970648,1736255444048,-500.0,9.77e-05,2]
[347970649,1736255444058,-929.57,9.77e-05,2]
[347970650,1736255444067,-500.0,9.77e-05,2]
[347970651,1736255444076,-500.0,9.77e-05,2]
[347970652,1736255444086,-500.0,9.77e-05,2]
[347970653,1736255444095,-1406.08,9.77e-05,2]
[347970654,1736255444105,-500.0,9.77e-05,2]
[347970655,1736255444114,-500.0,9.77e-05,2]
[347970656,1736255444123,-2985.52,9.77e-05,2]
[347970657,1736255444135,-500.0,9.77e-05,2]
[347970658,1736255444144,-554.73,9.77e-05,2]
[347970659,1736255444153,-891.25,9.77e-05,2]
[347970660,1736255444162,-500.0,9.77e-05,2]
[347970661,1736255444172,-500.0,9.77e-05,2]
[347970662,1736255444181,-500.0,9.77e-05,2]
[347970663,1736255444190,-601.09,9.77e-05,2]
[347970664,1736255444199,-500.0,9.77e-05,2]
[347970665,1736255444208,-500.0,9.77e-05,2]
[347970666,1736255444220,-1500.12,9.77e-05,2]
[347970667,1736255444230,-500.0,9.77e-05,2]
[347970668,1736255444239,-999.92,9.77e-05,2]
[347970669,1736255444248,-500.0,9.77e-05,2]
[347970670,1736255444261,-500.0,9.77e-05,2]
[347970671,1736255444270,-595.56,9.77e-05,2]
[347970672,1736255444279,-500.0,9.77e-05,2]
[347970673,1736255444288,-500.0,9.77e-05,2]
[347970674,1736255444298,-898.29,9.77e-05,2]
[347970675,1736255444309,-500.0,9.77e-05,2]
[347970676,1736255444318,-500.0,9.77e-05,2]
[347970677,1736255444327,-500.0,9.77e-05,2]
[347970678,1736255444338,-500.0,9.77e-05,2]
[347970679,1736255444347,-500.0,9.77e-05,2]
[347970680,1736255444358,-7584.92,9.77e-05,2]
[347970681,1736255444367,-500.0,9.77e-05,2]
[347970682,1736255444377,-1267.7,9.77e-05,2]
[347970683,1736255444387,-500.0,9.77e-05,2]
[347970684,1736255444396,-500.0,9.77e-05,2]
[347970685,1736255444405,-604.16,9.77e-05,2]
[347970686,1736255444415,-500.0,9.77e-05,2]
[347970687,1736255444424,-500.0,9.77e-05,2]
[347970688,1736255444434,-914.19,9.77e-05,2]
[347970689,1736255444443,-500.0,9.77e-05,2]
[347970690,1736255444452,-604.16,9.77e-05,2]
[347970691,1736255444464,-500.0,9.77e-05,2]
[347970692,1736255444473,-500.0,9.77e-05,2]
[347970693,1736255444483,-582.46,9.77e-05,2]
[347970694,1736255444492,-500.0,9.77e-05,2]
[347970695,1736255444503,-790.7,9.77e-05,2]
[347970696,1736255444513,-979.52,9.77e-05,2]
[347970697,1736255444522,-528.91,9.77e-05,2]
[347970698,1736255444531,-500.0,9.77e-05,2]
[347970699,1736255444540,-796.33,9.77e-05,2]
[347970700,1736255444549,-500.0,9.77e-05,2]
[347970701,1736255444559,-500.0,9.77e-05,2]
[347970702,1736255444568,-982.62,9.77e-05,2]
[347970703,1736255444577,-500.0,9.77e-05,2]
[347970704,1736255444586,-500.0,9.77e-05,2]
[347970705,1736255444595,-687.51,9.77e-05,2]
[347970706,1736255444605,-500.0,9.77e-05,2]
[347970707,1736255444615,-500.0,9.77e-05,2]
[347970708,1736255444624,-500.0,9.77e-05,2]
[347970709,1736255444633,-500.0,9.77e-05,2]
[347970710,1736255444643,-500.0,9.77e-05,2]
[347970711,1736255444652,-500.0,9.77e-05,2]
[347970712,1736255444661,-500.0,9.77e-05,2]
[347970713,1736255444671,-500.0,9.77e-05,2]
[347970714,1736255444680,-500.0,9.77e-05,2]
[347970715,1736255444689,-500.0,9.77e-05,2]
[347970716,1736255444699,-500.0,9.77e-05,2]
[347970717,1736255444709,-500.0,9.77e-05,2]
[347970718,1736255444719,-800.71,9.77e-05,2]
[347970719,1736255444728,-500.0,9.77e-05,2]
[347970720,1736255444737,-582.46,9.77e-05,2]
[347970721,1736255444748,-500.0,9.77e-05,2]
[347970722,1736255444757,-562.5,9.77e-05,2]
[347970723,1736255444768,-500.0,9.77e-05,2]
[347970724,1736255444779,-500.0,9.77e-05,2]
[347970725,1736255444788,-677.57,9.77e-05,2]
[347970726,1736255444798,-500.0,9.77e-05,2]
[347970727,1736255444808,-703.96,9.77e-05,2]
[347970728,1736255444817,-500.0,9.77e-05,2]
[347970729,1736255444827,-500.0,9.77e-05,2]
[347970730,1736255444836,-993.74,9.77e-05,2]
[347970731,1736255444846,-500.0,9.77e-05,2]
[347970732,1736255444855,-513.63,9.77e-05,2]
[347970733,1736255444865,-500.0,9.77e-05,2]
[347970734,1736255444874,-666.5,9.77e-05,2]
[347970735,1736255444883,-556.73,9.77e-05,2]
[347970736,1736255444892,-500.0,9.77e-05,2]
[347970737,1736255444902,-558.37,9.77e-05,2]
[347970738,1736255444911,-1002.97,9.77e-05,2]
[347970739,1736255444920,-500.0,9.77e-05,2]
[347970740,1736255444930,-500.0,9.77e-05,2]
[347970741,1736255444939,-736.66,9.77e-05,2]
[347970742,1736255444949,-500.0,9.77e-05,2]
[347970743,1736255444958,-500.0,9.77e-05,2]
[347970744,1736255444969,-500.0,9.77e-05,2]
[347970745,1736255444978,-584.27,9.77e-05,2]
[347970746,1736255444987,-500.0,9.77e-05,2]
[347970747,1736255444997,-500.0,9.77e-05,2]
[347970748,1736255445006,-500.0,9.77e-05,2]
[347970749,1736255445015,-500.0,9.77e-05,2]
[347970750,1736255445024,-500.0,9.77e-05,2]
[347970751,1736255445034,-500.0,9.77e-05,2]
[347970752,1736255445043,-555.48,9.77e-05,2]
[347970753,1736255445053,-1552.91,9.77e-05,2]
[347970754,1736255445062,-500.0,9.77e-05,2]
[347970755,1736255445072,-1170.87,9.77e-05,2]
[347970756,1736255445081,-500.0,9.77e-05,2]
[347970757,1736255445091,-541.66,9.77e-05,2]
[347970758,1736255445101,-1402.27,9.77e-05,2]
[347970759,1736255445110,-500.0,9.77e-05,2]
[347970760,1736255445120,-500.0,9.77e-05,2]
[347970761,1736255445130,-500.0,9.77e-05,2]
[347970762,1736255445140,-500.0,9.77e-05,2]
[347970763,1736255445149,-500.0,9.771e-05,2]
[347970764,1736255445159,-500.0,9.771e-05,2]
[347970765,1736255445168,-500.0,9.771e-05,2]
[347970766,1736255445177,-500.0,9.771e-05,2]
[347970767,1736255445187,-500.0,9.771e-05,2]
[347970768,1736255445196,-500.0,9.771e-05,2]
[347970769,1736255445205,-500.0,9.771e-05,2]
[347970770,1736255445216,-500.0,9.771e-05,2]
[347970771,1736255445226,-500.0,9.771e-05,2]
[347970772,1736255445235,-501.4789636,9.771e-05,2]
[347970773,1736255445245,-500.0,9.771e-05,2]
[347970774,1736255445255,-500.0,9.771e-05,2]
[347970775,1736255445266,-500.0,9.771e-05,2]
[347970776,1736255445276,-500.0,9.771e-05,2]
[347970777,1736255445285,-599.39991311,9.771e-05,2]
[347970778,1736255445294,-553.19473759,9.771e-05,2]
[347970779,1736255445304,-500.0,9.771e-05,2]
[347970780,1736255445314,-501.35544198,9.771e-05,2]
[347970781,1736255445323,-500.0,9.771e-05,2]
[347970782,1736255445332,-500.0,9.771e-05,2]
[347970783,1736255445342,-500.0,9.771e-05,2]
[347970784,1736255445352,-643.49,9.771e-05,2]
[347970785,1736255445362,-618.47,9.771e-05,2]
[347970786,1736255445371,-657.61,9.771e-05,2]
[347970787,1736255445381,-500.0,9.771e-05,2]
[347970788,1736255445391,-500.0,9.771e-05,2]
[347970789,1736255445400,-500.0,9.771e-05,2]
[347970790,1736255445409,-576.72,9.771e-05,2]
[347970791,1736255445418,-728.77,9.771e-05,2]
[347970792,1736255445427,-692.24,9.771e-05,2]
[347970793,1736255445437,-500.0,9.771e-05,2]
[347970794,1736255445446,-500.0,9.771e-05,2]
[347970795,1736255445455,-683.09,9.771e-05,2]
[347970796,1736255445466,-615.65,9.771e-05,2]
[347970797,1736255445476,-1443.4,9.771e-05,2]
[347970798,1736255445485,-1316.65,9.771e-05,2]
[347970799,1736255445494,-500.0,9.771e-05,2]
[347970800,1736255445504,-1739.24,9.771e-05,2]
[347970801,1736255445514,-1893.78,9.771e-05,2]
[347970802,1736255445523,-500.0,9.771e-05,2]
[347970803,1736255445533,-547.24,9.771e-05,2]
[347970804,1736255445542,-821.04,9.771e-05,2]
[347970805,1736255445552,-595.8,9.771e-05,2]
[347970806,1736255445561,-500.0,9.771e-05,2]
[347970807,1736255445571,-500.0,9.771e-05,2]
[347970808,1736255445580,-500.0,9.771e-05,2]
[347970809,1736255445589,-793.64,9.771e-05,2]
[347970810,1736255445599,-520.66,9.771e-05,2]
[347970811,1736255445608,-629.0,9.771e-05,2]
[347970812,1736255445617,-520.49,9.771e-05,2]
[347970813,1736255445627,-500.0,9.771e-05,2]
[347970814,1736255445636,-123.62986184,9.771e-05,2]
[347970815,1736255445678,-1270.74013816,9.771e-05,2]
[347970816,1736255445688,-878.13,9.771e-05,2]
[347970817,1736255445698,-698.92,9.771e-05,2]
[347970818,1736255445707,-5444.22,9.771e-05,2]
[347970819,1736255445718,-741.01,9.771e-05,2]
[347970820,1736255445727,-551.72,9.771e-05,2]
[347970821,1736255445737,-1093.91,9.771e-05,2]
[347970822,1736255445747,-1588.86,9.771e-05,2]
[347970823,1736255445757,-4331.21,9.771e-05,2]
[347970824,1736255445767,-4278.86,9.771e-05,2]
[347970825,1736255445777,-743.22,9.771e-05,2]
[347970826,1736255445787,-500.0,9.771e-05,2]
[347970827,1736255445797,-534.66,9.771e-05,2]
[347970828,1736255445807,-1081.43,9.771e-05,2]
[347970829,1736255445816,-602.43,9.771e-05,2]